Cogmind - Beta 11 X7 --- EXPLORER MODE // 2021.10.09 @ 01:08:00 // Winter2019/RPGLIKE Player: jfk Result: Destroyed by G-73 Enforcer with Phase Gun Performance ------------- Evolutions (8) 4000 Regions Visited (22) 4400 Robots Destroyed (325) 1625 Value Destroyed (20426) 20426 Prototype IDs (88) 1760 Alien Tech Used (4) 800 Bonus (14170) 14170 TOTAL SCORE: 47181 Bonus ------- High Alert Combat Kills 8765 Follower Combat Kills 2112 Entered Garrisons 1000 Used RIF Installer 2500 Aligned with FarCom 300 Friendly Fire -507 Cogmind --------- Core Integrity 0/1500 Matter 300/300 Energy 496/500 System Corruption 7% Temperature Cool (4) Movement Hovering (45) Location -2/Research Parts ------- > --- POWER (3) -------- Light Antimatter Reactor Graviton Reactor Light Quantum Reactor > --- PROPULSION (5) --- Cooled Gravmag System Cooled Antigrav System Combat Linear Gravjet > --- UTILITY (12) ----- Experimental Power Amplifier Inertial Stasis Machine Nanoactuators Advanced Phase Shifter EM Disruption Field Relay Coupler [NC] (80) Relay Coupler [Swarmer] (131) Relay Coupler [Grunt] (76) Relay Coupler [Hunter] (71) > --- WEAPON (3) ------- Advanced Remote Datajack Sigix Broadsword > --- INVENTORY (6) ---- Improved Force Booster Relay Coupler [Cutter] (138) Relay Coupler [Duelist] (124) Subatomic Replicator Improved Remote Datajack Peak State ------------ > --- POWER ------------ Light Antimatter Reactor Graviton Reactor Light Quantum Reactor > --- PROPULSION ------- Cooled Gravmag System Cooled Gravmag System Cooled Gravmag System Cooled Antigrav System Combat Antigrav System > --- UTILITY ---------- Inertial Stasis Machine Long-range Terrain Scanner Nanoactuators Advanced Actuator Array Improved Force Booster Reaction Control System Advanced Phase Shifter Relay Coupler [NC] Relay Coupler [Swarmer] Relay Coupler [Grunt] Relay Coupler [Hunter] Relay Coupler [Heavy] > --- WEAPON ----------- Improved Remote Datajack Sigix Broadsword > --- INVENTORY -------- EM Disruption Field Relay Coupler [Cutter] Relay Coupler [Grunt] Relay Coupler [Duelist] Relay Coupler [Sentry] Subatomic Replicator [Rating: 170] Favorites ----------- Power Graviton Reactor Engine F-cell Engine Power Core Micro Fission Core Reactor Graviton Reactor Propulsion Cooled Gravmag System Hover Unit Cooled Gravmag System Flight Unit Flying Fortress v7 Utility Relay Coupler [NC] Device Advanced Weight Redist. System Processor Advanced Visual Processing Unit Hackware Relay Coupler [NC] Protection Improved Powered Armor Weapon Improved Remote Datajack Special Weapon Improved Remote Datajack Impact Weapon Gravity Flail Slashing Weapon Longsword +1 Piercing Weapon Spear Build | -11 -10 -10 -9 -9 -9 -8 -8 -8 -8 -8 -6 -6 -6 -6 -5 -5 -4 -4 -3 -3 -3 -2 ------- Run | Scr Mat Min Mat Min Exi Min Mat Sto Gar Rec Fac Was Fac Gar Fac Gar Fac Gar Res Qua Gar Res Slots Evolved 19 | . . . 1 . 9 . . . 2 . 1 . 1 . 2 . 1 . 2 . . . Power 2 | . . . . . 1 . . . . . . . . . . . . . 1 . . . Propulsion 4 | . . . 1 . 2 . . . . . . . . . 1 . . . . . . . Utility 11 | . . . . . 5 . . . 2 . . . 1 . 1 . 1 . 1 . . . Weapon 2 | . . . . . 1 . . . . . 1 . . . . . . . . . . . Parts Attached 131 | . . 2 5 1 3 . 2 7 1 . 9 2 8 3 10 3 18 1 21 13 7 15 Power 20 | . . . 2 . 1 . . 1 1 . 2 . 1 . 1 . 3 . 3 2 1 2 Engine 4 | . . . 2 . 1 . . . . . 1 . . . . . . . . . . . Core 5 | . . . . . . . . 1 1 . 1 . 1 . . . . . . 1 . . Reactor 11 | . . . . . . . . . . . . . . . 1 . 3 . 3 1 1 2 Propulsion 18 | . . 1 2 1 1 . . 2 . . . . . . 5 . . . 1 2 . 3 Treads . | . . . . . . . . . . . . . . . . . . . . . . . Leg . | . . . . . . . . . . . . . . . . . . . . . . . Wheel . | . . . . . . . . . . . . . . . . . . . . . . . Hover 11 | . . . . . . . . . . . . . . . 5 . . . 1 2 . 3 Flight 7 | . . 1 2 1 1 . . 2 . . . . . . . . . . . . . . Utility 74 | . . . 1 . . . 1 3 . . 5 1 5 3 3 3 13 1 17 5 6 7 Device 43 | . . . . . . . . 3 . . 2 . 5 1 1 1 13 . 7 4 1 5 Storage . | . . . . . . . . . . . . . . . . . . . . . . . Processor 1 | . . . 1 . . . . . . . . . . . . . . . . . . . Hackware 18 | . . . . . . . . . . . 3 . . 2 2 2 . 1 2 . 5 1 Protection 12 | . . . . . . . 1 . . . . 1 . . . . . . 8 1 . 1 Artifact . | . . . . . . . . . . . . . . . . . . . . . . . Weapon 19 | . . 1 . . 1 . 1 1 . . 2 1 2 . 1 . 2 . . 4 . 3 Energy Gun . | . . . . . . . . . . . . . . . . . . . . . . . Energy Cannon . | . . . . . . . . . . . . . . . . . . . . . . . Ballistic Gun . | . . . . . . . . . . . . . . . . . . . . . . . Ballistic Cannon . | . . . . . . . . . . . . . . . . . . . . . . . Launcher . | . . . . . . . . . . . . . . . . . . . . . . . Special Weapon 3 | . . . . . . . . . . . 1 1 . . . . . . . . . 1 Impact Weapon 8 | . . . . . . . 1 1 . . . . 1 . 1 . 2 . . 2 . . Slashing Weapon 7 | . . 1 . . 1 . . . . . . . 1 . . . . . . 2 . 2 Piercing Weapon 1 | . . . . . . . . . . . 1 . . . . . . . . . . . Special Melee Weapon . | . . . . . . . . . . . . . . . . . . . . . . . Unidentified Prototypes 22 | . . . 2 . . . . 1 . . 1 . . . 1 . 3 . 5 6 . 3 Parts Lost 9 | . . . . . . . . . . . . . . . 1 . . . . 1 2 5 Power 1 | . . . . . . . . . . . . . . . . . . . . . 1 . Propulsion 2 | . . . . . . . . . . . . . . . . . . . . . . 2 Utility 6 | . . . . . . . . . . . . . . . 1 . . . . 1 1 3 Weapon . | . . . . . . . . . . . . . . . . . . . . . . . Highest Loss Streak 1 | . . . . . . . . . . . . . . . 1 . . . . 1 1 1 Average Slot Usage (%) 82 | . . 42 71 80 58 28 32 57 62 56 60 80 81 81 84 99 98 100 95 92 89 90 Engine 1 | . . . . . . 7 7 7 5 . . 5 5 5 2 . . . . . . . Core 3 | . . . . . . . . 3 8 12 11 5 5 5 5 5 2 . . 3 4 . Reactor 4 | . . . . . . . . . . . . . . . 2 5 7 9 8 8 7 12 Hover 10 | . . . . . . . . . . . . . . . 3 25 23 23 21 21 21 19 Flight 4 | . . 21 38 40 25 7 7 7 6 6 5 5 5 5 4 . . . . . . . Device 22 | . . . . . . . . 11 13 12 8 11 16 26 25 29 29 33 30 29 30 26 Processor 2 | . . . 12 20 16 7 7 7 6 6 5 5 4 . . . . . . . . . Hackware 13 | . . . . . . . . . . . 6 17 16 15 19 15 14 14 16 10 16 21 Protection 3 | . . . . . . . . 7 6 6 5 9 5 5 5 5 4 4 3 4 . . Special Weapon 3 | . . . . . . . . . . . 1 5 5 5 5 5 4 4 4 4 4 4 Impact Weapon 2 | . . . . . . . 4 7 6 6 4 . 2 . 2 5 4 4 4 3 . . Slashing Weapon 6 | . . 21 20 20 16 7 7 7 6 6 5 5 6 11 7 5 4 4 4 3 4 4 Naked Turns 90 | . 40 50 . . . . . . . . . . . . . . . . . . . . Heaviest Build 85 | . . 3 3 3 10 10 22 31 31 29 37 50 52 52 50 51 68 68 76 85 85 74 Greatest Support 110 | 3 3 4 9 9 50 50 50 59 59 59 59 59 59 59 64 89 89 96 96 88 109 110 Greatest Overweight (x) 2 | . . . . . . . . 2 . . . . . . 2 . . . 1 1 . 1 Average Overweight (x) . | . . . . . . . . . . . . . . . . . . . . . . . Largest Inventory Capacity 6 | . . 4 4 4 4 4 4 4 6 6 6 6 6 6 6 6 6 6 6 6 6 6 Average Capacity 5 | . . 3 4 4 4 4 4 4 4 6 6 6 6 6 6 6 6 6 6 6 6 6 Most Carried 6 | . . 3 2 2 3 . 1 3 6 6 6 2 6 6 6 6 6 6 6 6 6 6 Average Carried 4 | . . 1 1 1 2 . . 1 3 6 4 1 4 5 5 5 5 5 5 5 5 5 Final Capacity 6 | . . 4 4 4 4 4 4 4 6 6 6 6 6 6 6 6 6 6 6 6 6 6 Final Carried 6 | . . 1 1 1 . . 1 3 6 6 2 1 4 6 6 6 5 6 6 5 6 5 Class Distribution -------------------- 29% | Wizard-Scout 24% | Hacker-Mutant 14% | Hacker-Scout 9% | Wizard-Mutant 8% | Botlord-Gladiator 6% | Wizard-Ninja 5% | Wizard-Gladiator Dominant Class ---------------- Hacker-Mutant | -10/Materials Hacker-Mutant | -10/Mines Hacker-Mutant | -9/Materials Hacker-Mutant | -9/Mines Hacker-Mutant | -9/Exiles Hacker-Mutant | -8/Mines Hacker-Mutant | -8/Materials Hacker-Mutant | -8/Storage Hacker-Mutant | -8/Garrison Hacker-Mutant | -8/Recycling Hacker-Mutant | -6/Factory Hacker-Mutant | -6/Waste Hacker-Scout | -6/Factory Hacker-Scout | -6/Garrison Wizard-Scout | -5/Factory Wizard-Ninja | -5/Garrison Wizard-Scout | -4/Factory Wizard-Scout | -4/Garrison Wizard-Mutant | -3/Research Wizard-Mutant | -3/Quarantine Wizard-Gladiator | -3/Garrison Botlord-Gladiator | -2/Research Resources | -11 -10 -10 -9 -9 -9 -8 -8 -8 -8 -8 -6 -6 -6 -6 -5 -5 -4 -4 -3 -3 -3 -2 ----------- Run | Scr Mat Min Mat Min Exi Min Mat Sto Gar Rec Fac Was Fac Gar Fac Gar Fac Gar Res Qua Gar Res Matter Collected 2649 | . . 184 76 20 . 30 . 70 20 . 95 20 117 143 406 43 262 . 402 167 130 464 Remotely . | . . . . . . . . . . . . . . . . . . . . . . . Salvage Created 15577 | . . 177 156 . . . . 510 282 . 881 445 151 379 1841 654 1537 640 2830 1353 1215 2526 Parts 834 | . . 19 8 . . . 5 39 29 1 39 5 22 10 95 44 80 34 149 63 58 134 Haulers Intercepted 2 | . . . . . . . . . . . . . . . . . . . 1 . . 1 Recyclers Shooed . | . . . . . . . . . . . . . . . . . . . . . . . Parts Field Recycled . | . . . . . . . . . . . . . . . . . . . . . . . Retrieved Matter . | . . . . . . . . . . . . . . . . . . . . . . . Parts Self-Destructed . | . . . . . . . . . . . . . . . . . . . . . . . Prevented . | . . . . . . . . . . . . . . . . . . . . . . . Kills | -11 -10 -10 -9 -9 -9 -8 -8 -8 -8 -8 -6 -6 -6 -6 -5 -5 -4 -4 -3 -3 -3 -2 ------- Run | Scr Mat Min Mat Min Exi Min Mat Sto Gar Rec Fac Was Fac Gar Fac Gar Fac Gar Res Qua Gar Res Combat Hostiles Destroyed 305 | . . 7 2 . . . 1 10 14 1 13 . 7 5 44 24 32 14 45 24 22 40 Melee 285 | . . 7 2 . . . 1 10 13 1 11 . 7 5 42 23 24 12 41 24 22 40 Cannons 1 | . . . . . . . . . . . . . . . . . . 1 . . . . AOE 2 | . . . . . . . . . . . . . . . . . 2 . . . . . Classes Destroyed 23 | . . 2 1 . . . . 1 1 1 4 . 1 1 5 . . 1 3 1 . 1 Worker 6 | . . . . . . . . . . . . . . . 3 . 1 . . . . 2 Builder 1 | . . . . . . . . . . . . . . . . . . . 1 . . . Tunneler 1 | . . . . . . . . . . . . . . . 1 . . . . . . . Hauler 2 | . . . . . . . . . . . . . . . . . . . 1 . . 1 Recycler 5 | . . . . . . . . . . . 1 . . . 1 . . . 2 . . 1 Operator 1 | . . . . . . . . . . . . . 1 . . . . . . . . . Drone 1 | . . . . . . . . . . 1 . . . . . . . . . . . . Watcher 4 | . . . . . . . . . . . 1 . . . . . . . 1 . . 2 Swarmer 91 | . . 6 . . . . . 2 8 . 5 . 6 . 8 11 6 7 3 11 5 13 Cutter 3 | . . . . . . . . . . . . . . . . . . . 3 . . . Saboteur 4 | . . . . . . . . . . . . . . . 1 . 1 . . . . 2 Grunt 97 | . . 1 . . . . . . 4 . 1 . . 5 16 13 13 2 25 3 10 4 Brawler 8 | . . . . . . . . . . . . . . . 3 . . . 1 1 1 2 Duelist 7 | . . . . . . . . . 1 . 1 . . . . . . . 2 2 1 . Protector 2 | . . . . . . . . . . . . . . . . . . . . . . 2 Sentry 28 | . . . 2 . . . 1 7 1 . 2 . . . 3 . 4 3 1 . 2 2 Specialist 3 | . . . . . . . . . . . . . . . 2 . . . . . . 1 Hunter 18 | . . . . . . . . . . . 3 . 1 . 3 . 2 . 4 4 1 . Programmer 36 | . . . . . . . . . . . 1 . . . 8 . 6 1 3 2 1 14 Heavy 3 | . . . . . . . . 1 . . . . . . . . . . 2 . . . Behemoth 3 | . . . . . . . . . . . . . . . . . . 1 1 . 1 . Alpha 7 1 | . . . . . . . . . . . . . . . . . . . . 1 . . Surgeon 1 | . . . . . . . . . . . . . . 1 . . . . . . . . Best Kill Streak 15 | . . 3 1 . . . 1 3 8 1 6 . 3 2 10 11 7 9 15 5 8 6 Combat Bots Only 12 | . . 3 1 . . . 1 3 8 1 5 . 3 2 10 11 7 9 12 5 8 5 Max Kills in Single Turn 2 | . . 1 1 . . . 1 1 2 1 1 . 2 1 2 1 2 1 1 2 1 1 Gunslinging . | . . . . . . . . . . . . . . . . . . . . . . . Exploded 2 | . . . . . . . . . . . . . . . . . 2 . . . . . Melee 2 | . . 1 1 . . . 1 1 2 1 1 . 2 1 2 1 1 1 1 2 1 1 Uniques/NPCs Destroyed . | . . . . . . . . . . . . . . . . . . . . . . . Combat | -11 -10 -10 -9 -9 -9 -8 -8 -8 -8 -8 -6 -6 -6 -6 -5 -5 -4 -4 -3 -3 -3 -2 -------- Run | Scr Mat Min Mat Min Exi Min Mat Sto Gar Rec Fac Was Fac Gar Fac Gar Fac Gar Res Qua Gar Res Damage Taken 17788 | . . 97 93 35 . . 11 376 407 . 511 . 589 533 2478 815 1522 345 2692 2334 1317 3633 Core 12442 | . . 86 86 35 . . 8 264 259 . 324 . 367 321 1526 541 1069 239 1808 1662 1007 2840 Absorbed by Shields 26 | . . . . . . . . . 15 . . . . . . . . 11 . . . . Redirected to Core 10554 | . . 29 20 . . . 8 209 209 . 283 . 333 309 1256 434 720 208 1551 1375 976 2634 Core Remaining (%) 93 | 100 . 90 . . . 86 . . . 93 . . . 91 . 100 . 100 . . 91 . Volleys Fired 150 | . . . . . . . . . . . 1 . 11 9 43 3 8 . 26 7 2 40 Largest 1 | . . . . . . . . . . . 1 . 1 1 1 1 1 . 1 1 1 1 Hottest 50 | . . . . . . . . . . . 30 . 40 40 40 40 40 . 40 40 40 50 Shots Fired 150 | . . . . . . . . . . . 1 . 11 9 43 3 8 . 26 7 2 40 Gun . | . . . . . . . . . . . . . . . . . . . . . . . Cannon . | . . . . . . . . . . . . . . . . . . . . . . . Launcher . | . . . . . . . . . . . . . . . . . . . . . . . Special 150 | . . . . . . . . . . . 1 . 11 9 43 3 8 . 26 7 2 40 Kinetic . | . . . . . . . . . . . . . . . . . . . . . . . Thermal . | . . . . . . . . . . . . . . . . . . . . . . . Explosive . | . . . . . . . . . . . . . . . . . . . . . . . Electromagnetic . | . . . . . . . . . . . . . . . . . . . . . . . Robot Hit Streak 35 | . . . . . . . . . . . 1 . 12 17 18 12 20 . 23 30 32 35 Robot Miss Streak 1 | . . . . . . . . . . . . . . 1 1 . . . 1 . . 1 Penetration Max . | . . . . . . . . . . . . . . . . . . . . . . . Secondary Targets . | . . . . . . . . . . . . . . . . . . . . . . . Shots Hit Robots 1210 | . . 9 6 . . . 3 41 32 2 36 1 48 38 205 60 126 39 218 115 65 166 Core Hits 405 | . . 7 2 . . . 1 12 13 1 15 1 11 12 61 23 42 17 73 34 29 51 Critical Kills 3 | . . . . . . . . . . . . . . . . 2 . . 1 . . . Critical Parts Destroyed 14 | . . . . . . . . . 2 . . . . . 1 1 4 1 4 1 . . Critical Strikes 73 | . . . . . . . . 1 3 . 2 . 4 6 11 8 9 2 8 5 2 12 Smash 17 | . . . . . . . . . 2 . . . . . 1 3 4 1 5 1 . . Sever 56 | . . . . . . . . 1 1 . 2 . 4 6 10 5 5 1 3 4 2 12 Melee Attacks 1385 | . . 15 7 3 . . 3 62 38 2 36 1 49 38 240 65 186 55 226 127 69 163 Impact 260 | . . . . . . . 1 9 20 2 15 . 6 . 23 13 65 17 60 29 . . Slashing 1125 | . . 15 7 3 . . 2 53 18 . 21 1 43 38 217 52 121 38 166 98 69 163 Piercing . | . . . . . . . . . . . . . . . . . . . . . . . Sneak Attacks 35 | . . . . . . . . 1 . . 4 . 1 3 9 . 2 1 8 . 2 4 Combat Hostiles 13 | . . . . . . . . . . . 1 . . 1 3 . 1 1 4 . 2 . Follow-up Attacks 140 | . . . . . . . 1 5 9 . 3 . 7 9 22 5 16 9 38 16 . . Damage Inflicted 62085 | . . 374 223 . . . 133 1772 1286 55 1717 62 1830 1880 8468 2920 6172 1948 10037 5801 5731 11676 Guns . | . . . . . . . . . . . . . . . . . . . . . . . Cannons . | . . . . . . . . . . . . . . . . . . . . . . . Explosions 343 | . . . . . . . . . . . . . . 124 . . 219 . . . . . Melee 61588 | . . 374 223 . . . 133 1772 1286 55 1717 62 1830 1678 8468 2920 5877 1948 10037 5801 5731 11676 Ramming 154 | . . . . . . . . . . . . . . 78 . . 76 . . . . . Kinetic . | . . . . . . . . . . . . . . . . . . . . . . . Thermal 219 | . . . . . . . . . . . . . . . . . 219 . . . . . Explosive 124 | . . . . . . . . . . . . . . 124 . . . . . . . . Electromagnetic . | . . . . . . . . . . . . . . . . . . . . . . . Impact 7806 | . . . . . . . 13 72 512 55 528 . 117 . 558 479 1944 307 1983 1238 . . Slashing 53782 | . . 374 223 . . . 120 1700 774 . 1189 62 1713 1678 7910 2441 3933 1641 8054 4563 5731 11676 Piercing . | . . . . . . . . . . . . . . . . . . . . . . . Highest Corruption 7 | . . . . . . . . . . . . . . 1 3 3 1 1 1 5 7 7 Average Corruption 2 | . . . . . . . . . . . . . . 1 1 3 1 1 1 3 6 3 Corruption Purged . | . . . . . . . . . . . . . . . . . . . . . . . Effects 53 | . . . . . . . . . . . . . . 1 10 4 2 . 2 11 15 8 Message Errors 21 | . . . . . . . . . . . . . . 1 3 2 1 . 1 4 6 3 Matter Fused 12 | . . . . . . . . . . . . . . . 2 2 . . . 1 4 3 Heat Flow Errors 4 | . . . . . . . . . . . . . . . 1 . . . . 1 1 1 Energy Discharges 7 | . . . . . . . . . . . . . . . 2 . . . 1 1 2 1 Data Loss (minor) 8 | . . . . . . . . . . . . . . . 2 . 1 . . 4 1 . Data Loss (major) 1 | . . . . . . . . . . . . . . . . . . . . . 1 . Overload Shots . | . . . . . . . . . . . . . . . . . . . . . . . Overflow Damage 6599 | . . . 13 . . . 36 120 150 9 115 . 222 28 666 288 588 152 766 536 1163 1747 Projectiles . | . . . . . . . . . . . . . . . . . . . . . . . Explosions 16 | . . . . . . . . . . . . . . . . . 16 . . . . . Melee 6583 | . . . 13 . . . 36 120 150 9 115 . 222 28 666 288 572 152 766 536 1163 1747 Knockbacks 39 | . . . . . . . . . 1 . 2 . 1 . 3 . 14 2 13 3 . . Impact 37 | . . . . . . . . . 1 . 2 . 1 . 3 . 14 1 12 3 . . Kinetic . | . . . . . . . . . . . . . . . . . . . . . . . Secondary 2 | . . . . . . . . . . . . . . . . . . 1 1 . . . Self-Inflicted Damage 380 | . . . . . . . . . . . . . . 177 . . 203 . . . . . Shots 3 | . . . . . . . . . . . . . . 1 . . 2 . . . . . Rammed 1 | . . . . . . . . . . . . . . . . . 1 . . . . . Targets Rammed 1 | . . . . . . . . . . . . . . . . . 1 . . . . . Kicked . | . . . . . . . . . . . . . . . . . . . . . . . Crushed . | . . . . . . . . . . . . . . . . . . . . . . . Highest Temperature 229 | . . . 10 . . . . 11 . . 74 . 40 . 186 . . . 28 153 132 229 Average Temperature 33 | . . . 10 . . . . 4 . . 32 . 16 . 48 . . . 17 54 72 127 Received Heat Transfer 3852 | . . 12 45 . . . . 144 141 . 75 . 66 201 810 378 464 80 646 198 223 369 Siege Activations . | . . . . . . . . . . . . . . . . . . . . . . . Robots Corrupted . | . . . . . . . . . . . . . . . . . . . . . . . Combat Hostiles . | . . . . . . . . . . . . . . . . . . . . . . . Parts Fried 24 | . . . . . . . . . 2 . . . . . 3 2 6 1 8 2 . . Impact Corruptions 59 | . . . . . . . . . 6 1 3 . . . 5 3 18 3 12 8 . . Robots Melted . | . . . . . . . . . . . . . . . . . . . . . . . Combat Hostiles . | . . . . . . . . . . . . . . . . . . . . . . . Parts Melted 4 | . . . . . . . . . . . . . . . 1 . . . 1 1 1 . Heat Transferred 150 | . . . . . . . . . . . . . . . . . 150 . . . . . Parts Sabotaged 3 | . . . . . . . . . . . . . . . . . . . 3 . . . Parts Stolen . | . . . . . . . . . . . . . . . . . . . . . . . Parts Stripped . | . . . . . . . . . . . . . . . . . . . . . . . Power Chain Reactions . | . . . . . . . . . . . . . . . . . . . . . . . Missiles Intercepted . | . . . . . . . . . . . . . . . . . . . . . . . Alert | -11 -10 -10 -9 -9 -9 -8 -8 -8 -8 -8 -6 -6 -6 -6 -5 -5 -4 -4 -3 -3 -3 -2 ------- Run | Scr Mat Min Mat Min Exi Min Mat Sto Gar Rec Fac Was Fac Gar Fac Gar Fac Gar Res Qua Gar Res Peak Influence 1849 | . 6 181 291 89 . . 60 590 916 364 1526 294 866 1177 1453 1568 1426 1256 1380 1099 1391 1849 Initial 1009 | . . 1 49 74 . . . 18 291 297 1009 294 158 414 459 783 611 687 530 507 575 587 Average 820 | . 3 130 123 86 . . 30 313 635 338 1257 294 518 953 906 1201 988 1010 974 822 1038 1099 Maximum Alert Level 5 | . . . 1 . . . . 2 3 1 4 1 3 4 4 4 4 4 4 3 4 5 Low Security (%) 10 | 100 100 100 77 100 . 100 100 39 . . . . 1 . . . . . . . . . Level 1 6 | . . . 22 . . . . 18 24 100 . 100 30 . . . . . . . . . Level 2 20 | . . . . . . . . 42 21 . . . 50 21 32 . 18 9 14 23 20 11 Level 3 34 | . . . . . . . . . 53 . 28 . 17 39 30 35 40 53 57 76 23 47 Level 4 27 | . . . . . . . . . . . 71 . . 39 36 64 40 37 27 . 55 33 Level 5 . | . . . . . . . . . . . . . . . . . . . . . . 7 High Security . | . . . . . . . . . . . . . . . . . . . . . . . Max Security . | . . . . . . . . . . . . . . . . . . . . . . . Squads Dispatched 74 | . . . . 1 . . . 5 . . 4 . 8 . 21 . 9 . 11 4 . 11 Investigation 11 | . . . . 1 . . . . . . 1 . 1 . 4 . 3 . 1 . . . Extermination 11 | . . . . . . . . . . . . . 1 . 2 . 3 . 1 1 . 3 Reinforcement 26 | . . . . . . . . 2 . . 2 . 5 . 6 . . . 5 2 . 4 Assault 18 | . . . . . . . . . . . 1 . 1 . 4 . 3 . 4 1 . 4 Garrison 8 | . . . . . . . . 3 . . . . . . 5 . . . . . . . Intercept . | . . . . . . . . . . . . . . . . . . . . . . . Construction Impeded 2 | . . . . . . . . . . . . . 2 . . . . . . . . . Haulers Reinforced 1 | . . . . . . . . . . . . . . . . . . . . . . 1 Active Scanning Responses . | . . . . . . . . . . . . . . . . . . . . . . . Cargo Convoy Interrupts 2 | . . . . . . . . . . . . . . . 1 . . . . . . 1 Alert ID Control Effect 6 | . . . . . . . . . . . . . . . . . . . 2 . 1 3 Stealth | -11 -10 -10 -9 -9 -9 -8 -8 -8 -8 -8 -6 -6 -6 -6 -5 -5 -4 -4 -3 -3 -3 -2 --------- Run | Scr Mat Min Mat Min Exi Min Mat Sto Gar Rec Fac Was Fac Gar Fac Gar Fac Gar Res Qua Gar Res Distress Signals 20 | . . . 5 . . . . 2 . . 2 . 3 . 3 . 1 . 4 . . . Communications Jammed . | . . . . . . . . . . . . . . . . . . . . . . . Distress Signals . | . . . . . . . . . . . . . . . . . . . . . . . Times Spotted 669 | . 1 8 14 6 . . 3 21 20 5 21 . 34 24 121 36 69 15 74 48 38 111 Peak Tracking Total 15 | . 1 2 10 6 . . 3 5 9 5 5 . 5 6 12 7 10 4 10 9 12 15 Tactical Retreats 57 | . . . 2 . . . . 3 3 . 1 . . . 10 3 10 . 3 4 5 13 Traps | -11 -10 -10 -9 -9 -9 -8 -8 -8 -8 -8 -6 -6 -6 -6 -5 -5 -4 -4 -3 -3 -3 -2 ------- Run | Scr Mat Min Mat Min Exi Min Mat Sto Gar Rec Fac Was Fac Gar Fac Gar Fac Gar Res Qua Gar Res Traps Triggered 43 | . . . . . . . . . 9 . 4 . 3 5 2 3 1 8 2 2 3 1 Indirectly . | . . . . . . . . . . . . . . . . . . . . . . . Trap Hack Attempts . | . . . . . . . . . . . . . . . . . . . . . . . Triggered . | . . . . . . . . . . . . . . . . . . . . . . . Disarmed . | . . . . . . . . . . . . . . . . . . . . . . . Reprogrammed . | . . . . . . . . . . . . . . . . . . . . . . . Reused 2 | . . 1 1 . . . . . . . . . . . . . . . . . . . Traps Extracted . | . . . . . . . . . . . . . . . . . . . . . . . Installed 3 | . . 2 1 . . . . . . . . . . . . . . . . . . . Triggered 4 | . . 1 1 . . . . . . . . . . . 1 . 1 . . . . . Machines | -11 -10 -10 -9 -9 -9 -8 -8 -8 -8 -8 -6 -6 -6 -6 -5 -5 -4 -4 -3 -3 -3 -2 ---------- Run | Scr Mat Min Mat Min Exi Min Mat Sto Gar Rec Fac Was Fac Gar Fac Gar Fac Gar Res Qua Gar Res Machines Disabled 39 | . . . . . . . . 4 3 . . . 2 6 2 4 4 4 1 6 2 1 Max in Single Turn 4 | . . . . . . . . 1 1 . . . 1 2 . 1 4 1 1 1 1 . Garrison Relay 18 | . . . . . . . . . 3 . . . . 4 . 4 . 4 . . 3 . Phase Generator 1 | . . . . . . . . . . . . . . 1 . . . . . . . . Machines Sabotaged . | . . . . . . . . . . . . . . . . . . . . . . . Garrisons Compromised . | . . . . . . . . . . . . . . . . . . . . . . . Overloaded Fab Kills . | . . . . . . . . . . . . . . . . . . . . . . . Fab Network Shutdowns . | . . . . . . . . . . . . . . . . . . . . . . . Hacking | -11 -10 -10 -9 -9 -9 -8 -8 -8 -8 -8 -6 -6 -6 -6 -5 -5 -4 -4 -3 -3 -3 -2 --------- Run | Scr Mat Min Mat Min Exi Min Mat Sto Gar Rec Fac Was Fac Gar Fac Gar Fac Gar Res Qua Gar Res Machines Accessed 61 | . 1 . 2 1 1 . . 4 . 1 . . 4 . 13 . 16 . 7 5 . 6 Terminals 45 | . 1 . 2 . . . . 3 . 1 . . 3 . 10 . 11 . 5 4 . 5 Fabricators 5 | . . . . . . . . . . . . . . . 1 . 3 . 1 . . . Repair Stations 1 | . . . . . . . . . . . . . . . . . . . . . . 1 Recycling Units 1 | . . . . . . . . . . . . . . . . . . . 1 . . . Scanalyzers . | . . . . . . . . . . . . . . . . . . . . . . . Garrison Access 7 | . . . . . . . . 1 . . . . 1 . 2 . 2 . . 1 . . Total Hacks 155 | . 2 . 3 1 1 . . 4 . 2 . . 6 . 39 . 57 . 21 7 . 12 Successful 104 | . 1 . 1 1 1 . . 4 . 2 . . 2 . 24 . 39 . 10 7 . 12 Failed 51 | . 1 . 2 . . . . . . . . . 4 . 15 . 18 . 11 . . . Catastrophic 8 | . . . 1 . . . . . . . . . 2 . 2 . 1 . 2 . . . Database Lockouts . | . . . . . . . . . . . . . . . . . . . . . . . Manual 98 | . 2 . 3 . 1 . . . . 2 . . 4 . 26 . 41 . 13 2 . 4 Terminals 121 | . 2 . 3 . . . . 3 . 2 . . 5 . 36 . 41 . 13 6 . 10 Fabricators 20 | . . . . . . . . . . . . . . . 1 . 14 . 5 . . . Repair Stations 2 | . . . . . . . . . . . . . . . . . . . . . . 2 Recycling Units 3 | . . . . . . . . . . . . . . . . . . . 3 . . . Scanalyzers . | . . . . . . . . . . . . . . . . . . . . . . . Garrison Access 7 | . . . . . . . . 1 . . . . 1 . 2 . 2 . . 1 . . Terminal Hacks 45 | . 1 . 1 1 1 . . 3 . 2 . . 1 . 10 . 13 . 2 4 . 6 Record 13 | . . . . . . . . . . . . . . . 5 . . . . 3 . 5 Part Schematic 6 | . . . . . . . . . . . . . . . . . 5 . 1 . . . Prototype ID Bank 6 | . . . . . . . . . . . . . . . 1 . 3 . . 1 . 1 Open Door 6 | . . . . 1 . . . 3 . . . . 1 . . . . . 1 . . . Level Access Points 1 | . . . . . . . . . . 1 . . . . . . . . . . . . Branch Access Points 2 | . 1 . 1 . . . . . . . . . . . . . . . . . . . Terminal Index 1 | . . . . . . . . . . . . . . . . . 1 . . . . . Fabricator Index 2 | . . . . . . . . . . . . . . . 1 . 1 . . . . . Garrison Index 3 | . . . . . . . . . . 1 . . . . 1 . 1 . . . . . Hauler Manifests 3 | . . . . . . . . . . . . . . . 2 . 1 . . . . . Registered Prototypes 1 | . . . . . . . . . . . . . . . . . 1 . . . . . EX-Prototype ID Bank 1 | . . . . . 1 . . . . . . . . . . . . . . . . . Fabricator Hacks 10 | . . . . . . . . . . . . . . . . . 8 . 2 . . . Load Schematic 5 | . . . . . . . . . . . . . . . . . 4 . 1 . . . Build 5 | . . . . . . . . . . . . . . . . . 4 . 1 . . . Repair Station Hacks 2 | . . . . . . . . . . . . . . . . . . . . . . 2 Scan Component 1 | . . . . . . . . . . . . . . . . . . . . . . 1 Repair 1 | . . . . . . . . . . . . . . . . . . . . . . 1 Recycling Unit Hacks 2 | . . . . . . . . . . . . . . . . . . . 2 . . . Report Inventory 1 | . . . . . . . . . . . . . . . . . . . 1 . . . Retrieve Components 1 | . . . . . . . . . . . . . . . . . . . 1 . . . Scanalyzer . | . . . . . . . . . . . . . . . . . . . . . . . Garrison Access Hacks 5 | . . . . . . . . 1 . . . . 1 . 1 . 1 . . 1 . . Unlock Access 5 | . . . . . . . . 1 . . . . 1 . 1 . 1 . . 1 . . Unauthorized Hacks 40 | . . . . . . . . . . . . . . . 13 . 17 . 4 2 . 4 Terminals 32 | . . . . . . . . . . . . . . . 11 . 12 . 3 2 . 4 Assimilate 4 | . . . . . . . . . . . . . . . 3 . 1 . . . . . Botnet 26 | . . . . . . . . . . . . . . . 6 . 11 . 3 2 . 4 Disrupt 2 | . . . . . . . . . . . . . . . 2 . . . . . . . Fabricators 6 | . . . . . . . . . . . . . . . 1 . 4 . 1 . . . Prioritize 3 | . . . . . . . . . . . . . . . . . 2 . 1 . . . Haulers 2 | . . . . . . . . . . . . . . . 1 . 1 . . . . . Download 1 | . . . . . . . . . . . . . . . . . 1 . . . . . Repair Stations . | . . . . . . . . . . . . . . . . . . . . . . . Recycling Units . | . . . . . . . . . . . . . . . . . . . . . . . Scanalyzers . | . . . . . . . . . . . . . . . . . . . . . . . Garrison Access 2 | . . . . . . . . . . . . . . . 1 . 1 . . . . . Eject 2 | . . . . . . . . . . . . . . . 1 . 1 . . . . . Data Cores Recovered 2 | . . . . . . . . . . . . . 2 . . . . . . . . . Used 2 | . . . . . . . . . . . . . 2 . . . . . . . . . Hacking Detections 32 | . 1 . 1 . . . . 2 . 1 . . 2 . 8 . 10 . 4 2 . 1 Full Trace Events 5 | . . . 1 . . . . . . . . . . . 2 . 1 . 1 . . . Feedback Events 1 | . . . . . . . . . . . . . . . . . 1 . . . . . Corruption 1 | . . . . . . . . . . . . . . . . . 1 . . . . . Feedback Blocked . | . . . . . . . . . . . . . . . . . . . . . . . Robot Schematics Acquired 1 | . . . . . . . . . . . . . . . . . 1 . . . . . Robots Built . | . . . . . . . . . . . . . . . . . . . . . . . Matter . | . . . . . . . . . . . . . . . . . . . . . . . Time . | . . . . . . . . . . . . . . . . . . . . . . . Total Robot Build Rating . | . . . . . . . . . . . . . . . . . . . . . . . Part Schematics Acquired 16 | . . . . . . . . . . . . . . . . . 5 . 1 10 . . Parts Built 7 | . . . . . . . . . . . . . . . . . 5 . 2 . . . Matter 1331 | . . . . . . . . . . . . . . . . . 1097 . 234 . . . Time 157 | . . . . . . . . . . . . . . . . . 138 . 19 . . . Total Part Build Rating 51 | . . . . . . . . . . . . . . . . . 37 . 14 . . . Parts Repaired 1 | . . . . . . . . . . . . . . . . . . . . . . 1 Time 37 | . . . . . . . . . . . . . . . . . . . . . . 37 Parts Recycled . | . . . . . . . . . . . . . . . . . . . . . . . Recycled Matter . | . . . . . . . . . . . . . . . . . . . . . . . Retrieved Matter . | . . . . . . . . . . . . . . . . . . . . . . . Retrieved Components 1 | . . . . . . . . . . . . . . . . . . . 1 . . . Parts Scanalyzed . | . . . . . . . . . . . . . . . . . . . . . . . Part Schematics Acquired . | . . . . . . . . . . . . . . . . . . . . . . . Parts Damaged . | . . . . . . . . . . . . . . . . . . . . . . . Bothacking | -11 -10 -10 -9 -9 -9 -8 -8 -8 -8 -8 -6 -6 -6 -6 -5 -5 -4 -4 -3 -3 -3 -2 ------------ Run | Scr Mat Min Mat Min Exi Min Mat Sto Gar Rec Fac Was Fac Gar Fac Gar Fac Gar Res Qua Gar Res Used RIF Installer 5 | . . . . . . . . . 1 . . . . 1 . 1 . 1 . . 1 . Robot Detection 1 | . . . . . . . . . . . . . . . . . . . . . 1 . Watcher Feeds 1 | . . . . . . . . . . . . . . 1 . . . . . . . . Patrol Navigation 1 | . . . . . . . . . . . . . . . . 1 . . . . . . Alert ID Control 1 | . . . . . . . . . . . . . . . . . . 1 . . . . Robots Hacked 99 | . . . . . . . . . . . 1 . 9 6 31 2 7 . 17 7 2 17 Non-combat 24 | . . . . . . . . . . . . . 2 . 7 . 5 . 4 1 . 5 Combat 75 | . . . . . . . . . . . 1 . 7 6 24 2 2 . 13 6 2 12 Robot Hacks Applied 111 | . . . . . . . . . . . 1 . 10 6 34 2 7 . 21 7 2 21 parse_system 3 | . . . . . . . . . . . . . 3 . . . . . . . . . generate_anomaly 3 | . . . . . . . . . . . . . . . . . . . . . . 3 randomize_corridors 1 | . . . . . . . . . . . . . . . . . 1 . . . . . drop_inventory 11 | . . . . . . . . . . . . . . . 3 . 2 . 3 1 . 2 recall_reinforcements 1 | . . . . . . . . . . . . . . . . . . . . . . 1 check_alert 1 | . . . . . . . . . . . . . 1 . . . . . . . . . block_reporting 1 | . . . . . . . . . . . . . . . . . . . 1 . . . summon_haulers 1 | . . . . . . . . . . . . . . . . . . . 1 . . . disable_scanner 2 | . . . . . . . . . . . . . . . . . . . . 2 . . report_schematics 1 | . . . . . . . . . . . . . . . . . . . . 1 . . link_fov 1 | . . . . . . . . . . . . . . . . . 1 . . . . . focus_fire 1 | . . . . . . . . . . . . . . . . . . . . . . 1 scatter_targeting 9 | . . . . . . . . . . . . . . . 7 . . . 2 . . . disrupt_area 12 | . . . . . . . . . . . . . . . 2 . . . 6 1 . 3 spike_heat 1 | . . . . . . . . . . . . . . 1 . . . . . . . . overload_power 6 | . . . . . . . . . . . . . 1 . 3 1 1 . . . . . amplify_resonance 6 | . . . . . . . . . . . . . 3 . 2 . . . . . . 1 wipe_record 3 | . . . . . . . . . . . . . . . 2 . . . . . . 1 reboot_system 1 | . . . . . . . . . . . . . . . 1 . . . . . . . go_dormant 4 | . . . . . . . . . . . . . . . 4 . . . . . . . overwrite_iff 28 | . . . . . . . . . . . 1 . 1 1 5 1 2 . 6 2 2 7 streamctrl_high 4 | . . . . . . . . . . . . . . 2 1 . . . . . . 1 formatsys_low 1 | . . . . . . . . . . . . . . . 1 . . . . . . . formatsys_high 9 | . . . . . . . . . . . . . 1 2 3 . . . 2 . . 1 Relay Couplers Released 31 | . . . . . . . . . 5 . . . . 7 1 7 2 5 . . 4 . Ejected 3 | . . . . . . . . . . . . . . . 1 . 2 . . . . . Machine Destruction 28 | . . . . . . . . . 5 . . . . 7 . 7 . 5 . . 4 . Attached 18 | . . . . . . . . . . . 3 . . 2 2 2 . 1 2 . 5 1 Robots Rewired 3 | . . . . . . . . . . . . . . . . . . . . . 3 . Allies Hacked 4 | . . . . . . . . . . . . . . . 2 . . . . 1 . 1 Hacks Repelled . | . . . . . . . . . . . . . . . . . . . . . . . Allies | -11 -10 -10 -9 -9 -9 -8 -8 -8 -8 -8 -6 -6 -6 -6 -5 -5 -4 -4 -3 -3 -3 -2 -------- Run | Scr Mat Min Mat Min Exi Min Mat Sto Gar Rec Fac Was Fac Gar Fac Gar Fac Gar Res Qua Gar Res Total Allies 70 | . . 3 . . . . . . . . 1 20 2 5 15 1 3 . 6 2 5 7 Largest Group 20 | . . 3 3 . . . . . . . 1 20 20 15 10 1 2 . 3 1 4 1 Highest-Rated Group 810 | . . 40 40 . . . . . . . 41 810 810 613 414 30 60 . 132 47 308 171 Highest-Rated Ally 171 | . . 16 16 . . . . . . . 41 50 50 46 49 30 30 . 48 47 89 171 Total Orders 6 | . . . . . . . . . . . . . . . 4 . 2 . . . . . STAY 3 | . . . . . . . . . . . . . . . 2 . 1 . . . . . FOLLOW 2 | . . . . . . . . . . . . . . . 1 . 1 . . . . . AID 1 | . . . . . . . . . . . . . . . 1 . . . . . . . Ally Attacks 412 | . . . 7 . . . . . . . 1 . 150 83 78 1 7 . 40 3 20 22 Total Damage 11540 | . . . 87 . . . . . . . 59 . 3680 2151 2157 19 350 . 1424 113 397 1103 Kills 73 | . . . 2 . . . . . . . 1 . 36 13 12 . 1 . 2 . 3 3 Allies Corrupted 4 | . . . . . . . . . . . . . . . 2 . . . . . 1 1 Allies Melted 2 | . . . . . . . . . . . . . . . . 1 1 . . . . . Intel | -11 -10 -10 -9 -9 -9 -8 -8 -8 -8 -8 -6 -6 -6 -6 -5 -5 -4 -4 -3 -3 -3 -2 ------- Run | Scr Mat Min Mat Min Exi Min Mat Sto Gar Rec Fac Was Fac Gar Fac Gar Fac Gar Res Qua Gar Res Robot Analysis Total . | . . . . . . . . . . . . . . . . . . . . . . . Derelict Logs Recovered 1 | . . . . 1 . . . . . . . . . . . . . . . . . . Drone Launches . | . . . . . . . . . . . . . . . . . . . . . . . Drone Recoveries . | . . . . . . . . . . . . . . . . . . . . . . . Exploration | -11 -10 -10 -9 -9 -9 -8 -8 -8 -8 -8 -6 -6 -6 -6 -5 -5 -4 -4 -3 -3 -3 -2 ------------- Run | Scr Mat Min Mat Min Exi Min Mat Sto Gar Rec Fac Was Fac Gar Fac Gar Fac Gar Res Qua Gar Res Turns Passed 10653 | 10 40 387 103 230 95 139 53 352 364 68 405 167 951 462 1844 352 1252 302 911 572 485 1109 Spaces Moved 15363 | 20 80 677 212 391 215 277 90 442 454 124 601 208 1390 530 2420 507 2158 458 1182 765 598 1564 Core 206 | 20 80 105 . . . . . 1 . . . . . . . . . . . . . . Treads . | . . . . . . . . . . . . . . . . . . . . . . . Legs . | . . . . . . . . . . . . . . . . . . . . . . . Wheels . | . . . . . . . . . . . . . . . . . . . . . . . Hover 7742 | . . . . . . . . . . . . . . . 510 507 2158 458 1182 765 598 1564 Flight 7415 | . . 572 212 391 215 277 90 441 454 124 601 208 1390 530 1910 . . . . . . . Fastest Speed 15 | 50 50 40 37 34 34 50 50 50 50 50 50 50 50 50 34 15 15 15 15 34 21 16 Average Speed 41 | 50 50 41 37 34 41 50 50 50 50 50 50 50 50 50 46 33 33 33 33 39 38 34 Slowest Speed 150 | 50 50 50 40 37 50 50 50 150 50 50 50 50 50 50 150 34 34 34 88 84 40 111 Overloaded Moves 505 | . . . . . . . . . . . . . . . . 20 28 13 28 . 52 364 Propulsion Burnouts 1 | . . . . . . . . . . . . . . . . . . . . . . 1 Robots Hopped 70 | . . 7 3 4 . 3 . 6 . 3 2 . 14 1 27 . . . . . . . Cave-ins Triggered 3 | . . . . . . . . . . . . . . . 1 . . . . 1 . 1 Exploration Rate (%) 58 | 3 27 98 32 64 66 77 16 84 57 42 24 89 52 97 68 65 65 69 40 77 79 47 Regions Visited 22 Branch Regions 7 Pre-discovered Areas . | . . . . . . . . . . . . . . . . . . . . . . . Known Exits Taken 15 | 1 1 1 1 1 1 1 1 1 . 1 . . 1 . 1 . 1 . 1 1 . . Unknown Exits Taken . | . . . . . . . . . . . . . . . . . . . . . . . Scrap Searched . | . . . . . . . . . . . . . . . . . . . . . . . Spaces Dug 193 | . . 4 . 3 . . . 9 . . . . 9 1 60 . 47 2 17 7 2 32 Terrain Destroyed 281 | . . 4 . 3 . . . 9 . . . . 9 83 60 . 53 2 17 7 2 32 Melee 193 | . . 4 . 3 . . . 9 . . . . 9 1 60 . 47 2 17 7 2 32 Projectile . | . . . . . . . . . . . . . . . . . . . . . . . AOE 87 | . . . . . . . . . . . . . . 82 . . 5 . . . . . Terrain Rammed 2 | . . . . . . . . . . . . . . 1 . . 1 . . . . . Walls Destroyed 1 | . . . . . . . . . . . . . . . . . 1 . . . . . Machines Disabled 1 | . . . . . . . . . . . . . . 1 . . . . . . . . Actions | -11 -10 -10 -9 -9 -9 -8 -8 -8 -8 -8 -6 -6 -6 -6 -5 -5 -4 -4 -3 -3 -3 -2 --------- Run | Scr Mat Min Mat Min Exi Min Mat Sto Gar Rec Fac Was Fac Gar Fac Gar Fac Gar Res Qua Gar Res Total 18557 | 19 79 760 225 479 222 273 94 508 543 122 656 269 1572 684 2917 651 2591 586 1604 978 780 1945 Wait 872 | . . 65 . 84 . . . 1 5 . . 49 80 52 158 6 188 . 76 29 1 78 Move 15202 | 19 79 663 205 382 214 270 89 430 453 118 597 207 1363 526 2370 505 2157 453 1181 763 594 1564 Hop 60 | . . 6 3 4 . 3 . 5 . 2 2 . 12 1 22 . . . . . . . Pick Up 54 | . . 3 . . . . 1 1 4 . . . 7 4 4 6 3 1 3 1 11 5 Fast Attach 98 | . . 2 4 . 2 . 2 7 1 . 6 1 5 1 8 1 13 . 18 13 3 11 Attach 19 | . . . 1 . 1 . . . . . 3 . 1 1 1 2 1 . 2 1 3 2 Detach 14 | . . . 2 . 2 . . 1 . . . . 1 . . 2 1 . 1 2 1 1 Swap 16 | . . . . 1 . . . . . . . 1 2 1 1 . 4 1 1 1 1 2 Drop 104 | . . 2 2 1 3 . . 3 2 . 5 2 8 2 6 4 16 . 15 11 7 15 Fire 150 | . . . . . . . . . . . 1 . 11 9 43 3 8 . 26 7 2 40 Melee 1168 | . . 15 7 3 . . 2 53 28 2 32 1 39 27 202 58 150 38 174 105 69 163 Ram 3 | . . . . . . . . . . . . . . 1 . . 2 . . . . . Kick . | . . . . . . . . . . . . . . . . . . . . . . . Crush . | . . . . . . . . . . . . . . . . . . . . . . . Escape Stasis 171 | . . . . . . . . . 18 . 2 . 15 40 . 18 . 65 . 1 12 . Rewire 11 | . . . . . . . . . . . . . . 1 . . . . . . 9 1 Trap 3 | . . 2 1 . . . . . . . . . . . . . . . . . . . Miscellaneous 612 | . . 2 . 4 . . . 7 32 . 8 8 28 18 102 46 48 28 107 44 67 63 Route ------- -11/Scrapyard -10/Materials -10/Mines (discovered 2 exits: *Mat x2) -9/Materials (discovered 2 exits: *Min x2) -9/Mines (discovered 3 exits: *Mat / *Exi / [*Zio]) -9/Exiles (discovered 2 exits: *Min x2) -8/Mines -8/Materials -8/Storage -8/Garrison (discovered 3 exits: *Rec x3) -8/Recycling -6/Factory -6/Waste -6/Factory (discovered 6 exits: *Fac x3 / *Low / *Ext / Gar) -6/Garrison (discovered 3 exits: *Fac x3) -5/Factory (discovered 7 exits: *Fac x4 / *Upp x2 / Gar) -5/Garrison (discovered 3 exits: *Fac x3) -4/Factory (discovered 6 exits: *Res x3 / *Upp x2 / Gar) -4/Garrison (discovered 3 exits: *Res x3) -3/Research (discovered 3 exits: *Res x2 / *Qua) -3/Quarantine (discovered 2 exits: *Res / Gar) -3/Garrison (discovered 3 exits: *Res x3) -2/Research (discovered 2 exits: *Acc x2) History --------- Turn | Location | Event 3 | -11/Scrapyard | Identified exit to Materials 3 | -11/Scrapyard | Discovered exit to Materials (range 15) 11 | -11/Scrapyard | Entered Materials 29 | -10/Materials | Identified exit to Mines 51 | -10/Materials | Entered Mines 52 | -10/Mines | Met a Derelict bent on vengeance 100 | -10/Mines | A weapon hastily lodged in a ceiling crevice suddenly fell to the ground 126 | -10/Mines | Found a hidden stash of uninstalled traps 137 | -10/Mines | Identified exit to Materials 137 | -10/Mines | Discovered exit to Materials (range 12) 178 | -10/Mines | Discovered exit to Materials (range 11) 251 | -10/Mines | Assisted by bots powering up and referring to "LRC-V3" 316 | -10/Mines | Build established: Hacker-Mutant 438 | -10/Mines | Entered Materials 438 | -9/Materials | Accompanied by 3 allies 440 | -9/Materials | Reached level 2 440 | -9/Materials | Reached level 3 440 | -9/Materials | Reached level 4 448 | -9/Materials | Upgraded with Propulsion slot (x1) 506 | -9/Materials | Identified exit to Mines 541 | -9/Materials | Entered Mines 543 | -9/Mines | Reached level 5 555 | -9/Mines | A Derelict revealed a hidden shortcut to a safe place 575 | -9/Mines | Identified exit to Materials 575 | -9/Mines | Discovered exit to Materials (range 12) 579 | -9/Mines | Assembled infested the area 613 | -9/Mines | Learned 2 Materials zone layouts 632 | -9/Mines | Met a Derelict shopkeep closing up shop 644 | -9/Mines | Met 8R-AWN 769 | -9/Mines | Identified exit to Exiles 769 | -9/Mines | Discovered exit to Exiles (range 5) 771 | -9/Mines | Entered Exiles 776 | -9/Exiles | Identified exit to Mines 776 | -9/Exiles | Discovered exit to Mines (range 17) 780 | -9/Exiles | Welcomed by 8R-AWN 785 | -9/Exiles | Met EX-HEX 795 | -9/Exiles | Met EX-BIN 800 | -9/Exiles | Aligned with FarCom system 800 | -9/Exiles | Given EX-Vault access code 808 | -9/Exiles | Opened EX-Vault 811 | -9/Exiles | Found Longsword +1 813 | -9/Exiles | Upgraded with Propulsion slot (x2) 814 | -9/Exiles | Found Flying Fortress v7 826 | -9/Exiles | Warned to stay clear of 0b10 Research branches 839 | -9/Exiles | Met EX-DEC 859 | -9/Exiles | Discovered exit to Mines (range 10) 865 | -9/Exiles | Upgraded with Power slot (x1) 865 | -9/Exiles | Upgraded with Utility slot (x5) 865 | -9/Exiles | Upgraded with Weapon slot (x1) 866 | -9/Exiles | Stole two prototypes: Longsword +1, Flying Fortress v7 866 | -9/Exiles | Entered Mines 996 | -8/Mines | Discovered exit to Materials (range 18) 1005 | -8/Mines | Entered Materials 1007 | -8/Materials | Reached level 6 1007 | -8/Materials | Reached level 7 1018 | -8/Materials | Identified exit to Storage 1018 | -8/Materials | Discovered exit to Storage (range 11) 1058 | -8/Materials | Entered Storage 1060 | -8/Storage | Reached level 8 1194 | -8/Storage | Garrison activated, responded to threat 1230 | -8/Storage | Reached level 9 1408 | -8/Storage | Identified exit to Garrison 1410 | -8/Storage | Entered Garrison 1444 | -8/Garrison | Triggered checkpoint 1472 | -8/Garrison | Garrison Relay disabled 1472 | -8/Garrison | Reached level 10 1502 | -8/Garrison | Triggered checkpoint 1502 | -8/Garrison | Triggered checkpoint 1520 | -8/Garrison | Triggered checkpoint 1575 | -8/Garrison | Destroyed 8 combat bots 1578 | -8/Garrison | Garrison Relay disabled 1592 | -8/Garrison | Identified exit to Recycling 1592 | -8/Garrison | Discovered exit to Recycling (range 17) 1635 | -8/Garrison | Reached level 11 1641 | -8/Garrison | Discovered exit to Recycling (range 12) 1695 | -8/Garrison | Garrison Relay disabled 1699 | -8/Garrison | Upgraded with Utility slot (x2) 1726 | -8/Garrison | Triggered checkpoint 1762 | -8/Garrison | Discovered exit to Recycling (range 13) 1772 | -8/Garrison | Installed Relay Interface Framework 1774 | -8/Garrison | Entered Recycling 1776 | -8/Recycling | Reached level 12 1779 | -8/Recycling | Identified exit to Factory 1797 | -8/Recycling | Spotter reported a threat 1797 | -8/Recycling | Spotter reported a threat 1798 | -8/Recycling | Spotter reported a threat 1818 | -8/Recycling | Spotter reported a threat 1823 | -8/Recycling | Spotter reported a threat 1825 | -8/Recycling | Spotter reported a threat 1842 | -8/Recycling | Entered Factory 1844 | -6/Factory | FarCom data flow suspended 1844 | -6/Factory | Reached level 13 2053 | -6/Factory | Reached level 14 2095 | -6/Factory | Upgraded with Weapon slot (x1) 2116 | -6/Factory | Identified exit to Factory 2116 | -6/Factory | Discovered exit to Factory (range 11) 2192 | -6/Factory | First assault squad dispatched 2247 | -6/Factory | Sucked down chute 2247 | -6/Factory | Entered Waste 2248 | -6/Waste | Joined by Warlord forces that had cleared the area 2297 | -6/Waste | Found Imp. Powered Armor 2370 | -6/Waste | Identified exit to Factory 2370 | -6/Waste | Discovered exit to Factory (range 12) 2414 | -6/Waste | Entered Factory 2414 | -6/Factory | Accompanied by 20 allies 2428 | -6/Factory | Reached level 15 2595 | -6/Factory | Identified exit to Extension 2595 | -6/Factory | Discovered exit to Extension (range 6) 2690 | -6/Factory | Identified exit to Lower Caves 2690 | -6/Factory | Discovered exit to Lower Caves (range 20) 2704 | -6/Factory | Reached level 16 2764 | -6/Factory | First assault squad dispatched 2882 | -6/Factory | Build established: Hacker-Scout 2917 | -6/Factory | Reached level 17 3024 | -6/Factory | Discovered exit to Factory (range 18) 3140 | -6/Factory | Spotted B-75 Beast 3172 | -6/Factory | Allies destroyed B-75 Beast 3232 | -6/Factory | Discovered exit to Factory (range 10) 3274 | -6/Factory | Discovered exit to Factory (range 18) 3298 | -6/Factory | Identified exit to Garrison 3337 | -6/Factory | Reached level 18 3340 | -6/Factory | Upgraded with Utility slot (x1) 3365 | -6/Factory | Entered Garrison 3365 | -6/Garrison | Accompanied by 12 allies 3374 | -6/Garrison | Phase Generator disabled 3384 | -6/Garrison | Triggered checkpoint 3423 | -6/Garrison | Garrison Relay disabled 3442 | -6/Garrison | Triggered checkpoint 3442 | -6/Garrison | Spotted B-75 Beast 3450 | -6/Garrison | Triggered checkpoint 3459 | -6/Garrison | Allies destroyed B-75 Beast 3460 | -6/Garrison | Triggered checkpoint 3469 | -6/Garrison | Reached level 19 3506 | -6/Garrison | Discovered exit to Factory (range 13) 3536 | -6/Garrison | Triggered checkpoint 3555 | -6/Garrison | Garrison Relay disabled 3598 | -6/Garrison | Discovered exit to Factory (range 8) 3612 | -6/Garrison | Triggered checkpoint 3646 | -6/Garrison | Garrison Relay disabled 3688 | -6/Garrison | Discovered exit to Factory (range 15) 3706 | -6/Garrison | Expanded RIF knowledge: Watcher Feeds 3716 | -6/Garrison | Triggered checkpoint 3722 | -6/Garrison | Garrison Relay disabled 3827 | -6/Garrison | Entered Factory 3827 | -5/Factory | Accompanied by 9 allies 3829 | -5/Factory | Reached level 20 3871 | -5/Factory | Upgraded with Utility slot (x1) 3922 | -5/Factory | Identified exit to Factory 3922 | -5/Factory | Discovered exit to Factory (range 20) 3974 | -5/Factory | P-70 Sage assimilated allied 9M-E1K(m) 3980 | -5/Factory | Reached level 21 4021 | -5/Factory | Identified exit to Upper Caves 4021 | -5/Factory | Discovered exit to Upper Caves (range 20) 4275 | -5/Factory | Allied Derelicts emerged from ambush trap array 4301 | -5/Factory | Discovered exit to Factory (range 18) 4303 | -5/Factory | Garrison activated, responded to threat 4459 | -5/Factory | Build established: Wizard-Scout 4727 | -5/Factory | First assault squad dispatched 4745 | -5/Factory | Cargo convoy interrupted 4786 | -5/Factory | Reached level 22 4923 | -5/Factory | Destroyed 10 combat bots 5106 | -5/Factory | Discovered exit to Factory (range 19) 5186 | -5/Factory | Crushed by falling debris 5390 | -5/Factory | Discovered exit to Factory (range 16) 5427 | -5/Factory | Upgraded with Propulsion slot (x1) 5524 | -5/Factory | Garrison activated, responded to threat 5549 | -5/Factory | Discovered exit to Upper Caves (range 15) 5596 | -5/Factory | Reached level 23 5621 | -5/Factory | Spotted B-75 Beast 5671 | -5/Factory | Identified exit to Garrison 5671 | -5/Factory | Entered Garrison 5673 | -5/Garrison | Expanded RIF knowledge: Patrol Navigation 5690 | -5/Garrison | Garrison Relay disabled 5736 | -5/Garrison | Triggered checkpoint 5740 | -5/Garrison | Triggered checkpoint 5793 | -5/Garrison | Destroyed 11 combat bots 5829 | -5/Garrison | Discovered exit to Factory (range 11) 5840 | -5/Garrison | Triggered checkpoint 5850 | -5/Garrison | Garrison Relay disabled 5880 | -5/Garrison | Triggered checkpoint 5882 | -5/Garrison | Triggered checkpoint 5911 | -5/Garrison | Garrison Relay disabled 5918 | -5/Garrison | Triggered checkpoint 5925 | -5/Garrison | Discovered exit to Factory (range 12) 5992 | -5/Garrison | Build established: Wizard-Ninja 6004 | -5/Garrison | Garrison Relay disabled 6018 | -5/Garrison | Discovered exit to Factory (range 13) 6023 | -5/Garrison | Entered Factory 6025 | -4/Factory | Reached level 24 6191 | -4/Factory | Identified exit to Research 6191 | -4/Factory | Discovered exit to Research (range 17) 6305 | -4/Factory | Spotted B-86 Titan 6378 | -4/Factory | Reached level 25 6409 | -4/Factory | Identified exit to Upper Caves 6409 | -4/Factory | Discovered exit to Upper Caves (range 20) 6449 | -4/Factory | Discovered exit to Upper Caves (range 19) 6520 | -4/Factory | Upgraded with Utility slot (x1) 6523 | -4/Factory | First assault squad dispatched 6549 | -4/Factory | Fabricated Nanoactuators (x2) 6585 | -4/Factory | Fabricated Adv. Phase Shifter (x1) 6617 | -4/Factory | Fabricated Adv. Actuator Array? 6668 | -4/Factory | Build established: Wizard-Scout 6729 | -4/Factory | Discovered exit to Research (range 20) 6808 | -4/Factory | Discovered exit to Research (range 19) 6839 | -4/Factory | Spotted B-86 Titan 6945 | -4/Factory | Destroyed 7 combat bots 6996 | -4/Factory | Found Prototype Device 6996 | -4/Factory | Identified EM Disruption Field 7126 | -4/Factory | Fabricated Inertial Stasis Machine (x1) 7175 | -4/Factory | Reached level 26 7275 | -4/Factory | Identified exit to Garrison 7275 | -4/Factory | Entered Garrison 7277 | -4/Garrison | Expanded RIF knowledge: Alert ID Control 7303 | -4/Garrison | Garrison Relay disabled 7310 | -4/Garrison | Triggered checkpoint 7331 | -4/Garrison | Spotted B-86 Titan 7337 | -4/Garrison | Triggered checkpoint 7342 | -4/Garrison | Destroyed B-86 Titan 7370 | -4/Garrison | Triggered checkpoint 7398 | -4/Garrison | Garrison Relay disabled 7406 | -4/Garrison | Destroyed 9 combat bots 7409 | -4/Garrison | Discovered exit to Research (range 13) 7466 | -4/Garrison | Discovered exit to Research (range 9) 7484 | -4/Garrison | Garrison Relay disabled 7490 | -4/Garrison | Triggered checkpoint 7551 | -4/Garrison | Discovered exit to Research (range 10) 7561 | -4/Garrison | Garrison Relay disabled 7577 | -4/Garrison | Entered Research 7579 | -3/Research | Reached level 27 7658 | -3/Research | Spotted B-86 Titan 7684 | -3/Research | Destroyed B-86 Titan 7706 | -3/Research | Found Adv. Powered Armor 7747 | -3/Research | Reached level 28 7786 | -3/Research | Destroyed 12 combat bots 7804 | -3/Research | Upgraded with Power slot (x1) 7804 | -3/Research | Upgraded with Utility slot (x1) 7827 | -3/Research | First assault squad dispatched 7934 | -3/Research | Identified exit to Research 7934 | -3/Research | Discovered exit to Research (range 23) 7980 | -3/Research | Fabricated Imp. Force Booster? 8082 | -3/Research | Discovered exit to Research (range 22) 8144 | -3/Research | Identified exit to Quarantine 8144 | -3/Research | Discovered exit to Quarantine (range 21) 8310 | -3/Research | Build established: Wizard-Mutant 8334 | -3/Research | Reached level 29 8374 | -3/Research | Destroyed 9 combat bots 8488 | -3/Research | Entered Quarantine 8540 | -3/Quarantine | Found Alien Impact Weapon 8540 | -3/Quarantine | Identified Core Stripper 8609 | -3/Quarantine | Spotted Alpha 7 8626 | -3/Quarantine | Cryocooling Duct disabled 8641 | -3/Quarantine | Ambient heat levels rising (+20) 8641 | -3/Quarantine | Non-combat units ordered to evacuate 8652 | -3/Quarantine | Found Alien Artifact 8652 | -3/Quarantine | Identified Terrabomb 8652 | -3/Quarantine | Used Terrabomb 8667 | -3/Quarantine | Discovered exit to Research (range 8) 8667 | -3/Quarantine | Crushed by falling debris 8732 | -3/Quarantine | Core integrity fell below 50% 8737 | -3/Quarantine | Destroyed Alpha 7 8774 | -3/Quarantine | First assault squad dispatched 8830 | -3/Quarantine | Core integrity fell below 20% 8868 | -3/Quarantine | Found Alien Artifact 8868 | -3/Quarantine | Identified Subatomic Replicator 8913 | -3/Quarantine | Cryocooling Duct disabled 8928 | -3/Quarantine | Ambient heat levels rising (+20) 8928 | -3/Quarantine | Combat units ordered to evacuate 8954 | -3/Quarantine | Found Alien Slashing Weapon 8954 | -3/Quarantine | Identified Sigix Broadsword 9028 | -3/Quarantine | Quarantine Guard activated 9042 | -3/Quarantine | Spotted Quarantine Guard 9045 | -3/Quarantine | Spotted Quarantine Guard 9047 | -3/Quarantine | Spotted Quarantine Guard 9049 | -3/Quarantine | Spotted Quarantine Guard 9056 | -3/Quarantine | Spotted Quarantine Guard 9059 | -3/Quarantine | Identified exit to Garrison 9060 | -3/Quarantine | Entered Garrison 9062 | -3/Garrison | Reached level 30 9096 | -3/Garrison | Triggered checkpoint 9101 | -3/Garrison | Garrison Relay disabled 9150 | -3/Garrison | Spotted B-86 Titan 9151 | -3/Garrison | Triggered checkpoint 9162 | -3/Garrison | Triggered checkpoint 9181 | -3/Garrison | Destroyed B-86 Titan 9199 | -3/Garrison | Discovered exit to Research (range 12) 9210 | -3/Garrison | Triggered checkpoint 9301 | -3/Garrison | Destroyed 8 combat bots 9370 | -3/Garrison | Triggered checkpoint 9393 | -3/Garrison | Garrison Relay disabled 9418 | -3/Garrison | Discovered exit to Research (range 14) 9442 | -3/Garrison | Triggered checkpoint 9447 | -3/Garrison | Build established: Wizard-Gladiator 9473 | -3/Garrison | Expanded RIF knowledge: Robot Detection 9514 | -3/Garrison | Triggered checkpoint 9515 | -3/Garrison | Garrison Relay disabled 9540 | -3/Garrison | Discovered exit to Research (range 9) 9545 | -3/Garrison | Entered Research 9547 | -2/Research | Reached level 31 9795 | -2/Research | Repaired Adv. Phase Shifter 9833 | -2/Research | First assault squad dispatched 9854 | -2/Research | Found Prototype Slashing Weapon 9854 | -2/Research | Identified Vibroblade 9872 | -2/Research | P-80 Master assimilated allied Overseer 9a 10006 | -2/Research | Core integrity fell below 50% 10007 | -2/Research | Build established: Botlord-Gladiator 10203 | -2/Research | Cargo convoy interrupted 10203 | -2/Research | Spotted Striker 10224 | -2/Research | Identified exit to Access 10224 | -2/Research | Discovered exit to Access (range 24) 10289 | -2/Research | Core integrity fell below 20% 10319 | -2/Research | Reached level 32 10405 | -2/Research | Spotted B-90 Cyclops 10589 | -2/Research | Crushed by falling debris 10596 | -2/Research | Discovered exit to Access (range 10) 10654 | -2/Research | Destroyed by G-73 Enforcer with Phase Gun Last Messages --------------- 10642_ P-80 Master resets Y-72 Warden, system corruption cleaned. 10642_ Acquired 17 matter. 10643_ Penetrated by Slug. 10643_ Reaction Control System destroyed. 10643_ K-01 Serf collects debris. 10643_ P-80 Master resets P-80 Master, system corruption cleaned. 10644_ Protomatter-85 decays. 10644_ G-73 Enforcer destroyed. 10644_ Slug penetrates Wall. 10647_ K-01 Serf collects debris. 10648_ Penetrated by Slug. 10648_ Slug penetrates Wall. 10649_ B-90 Cyclops exits siege mode. 10649_ K-01 Serf destroyed. 10650_ U-05 Engineer builds a Wall. 10651_ K-01 Serf cleans the Terminal. 10652_ Penetrated by Slug. 10652_ Slug penetrates Wall. 10652_ P-80 Master resets P-80 Master, system corruption cleaned. 10653_ Critical hit (Burn: +37). Map ----- +----------------------------------------------------+ | ?????????????????????????????????????????????????? | | ?????????????????????????????????????????????????? | | ?????????????????????????????????????????????????? | | ?????????????????????????????????????????????????? | | ?????????????????????????????????????????????????? | | ?????????????????????????????????????????????????? | | ?????????????????????????????????????????????????? | | ?????????????????????????????????????????????????? | | ?????????????????????????????????????????????????? | | ?????????????????????????????????????????????????? | | ?????????????????????????????????????????????????? | | ?????????????????????????????????????????????????? | | ?????????????????????????????????????????????????? | | ?????????????????????????????????????????????????? | | ?????????????????????????????????????????????????? | | ?????????????????????????????????????????????????? | | ?????????????????????????????????????????????????? | | ?????????????????????????????????????????????????? | | ?????????????????????????????????????????????????? | | ?????????????????????????????????????????????????? | | ?????????????????????????????????????????????????? | | ???????????????????????###########????????????###? | | ???????????????????????#[ =!Yh![ #???????????? #? | | ???????????????????????#!=p %![ #??????????? #? | | ?????????????######???##g==!g=== #??????????? ?? | | ?????????????# ??##!@!bpg** #?#######??? ??? | | ?????????????# #######/##;u##" ####+### | | ?????????????# ** | | ?????????????# < [ | | ?????????????# | | ??????????? ###############"" #??? | | ?????????????# ???########???#"" ###+ | | ???????????????#####????# ] #???#"" # | | ????????????????????????# #???#T + | | ????????????????????????# #???#"" # | | ????????????????????????# #???#"" #### | | ???????????#######??????# #???#"" | | ???????????# #??????#! % #???# | | ???????????# " ###########"####### | | ???????????# "T = g # | | ???????????# ########### ############# # # | | ???????????# #?????????# #???????????# " # | | ???????????### ###??#??????# #???????????#"## # | | ?????????????# #?? #??????# #????????###"""# # | | ??????????#### # ==#??????# #????????# # " | | ???######## + = #??????# #????????# # # | | ???# ! # # ########+#?########! # # | | ???# # #?? # # ! # # | | ???# + #????# # # # | | ???# # #????#| """ # """ " # | +----------------------------------------------------+ Best States ------------- Heat Dissipation 97 Energy Generation 89 Energy Capacity 690 Matter Stores 300 Matter Capacity 300 Sight Range 20 Terrain Scan Range 24 Terrain Scan Density 1010 Cloak Strength 2 Power Amplification 40 Additional Mass Support 16 Armor Coverage 550 Resistance: KI 55 Resistance: TH 60 Resistance: EX 35 Resistance: EM 85 Resistance: I 35 Resistance: S 35 Resistance: P 35 Propulsion Shielding 90 Melee Speed Boost 30 Phase Shifting 15 Evasion (%) 88 Force Boost 4 Offensive Hacking 40 Defensive Hacking 25 Relay Coupler Types 390 Relay Coupler Value 5 Item Schematics ----------------- Nanoactuators | -4/Factory | Hacked Adv. Actuator Array | -4/Factory | Hacked Adv. Phase Shifter | -4/Factory | Hacked Imp. Force Booster | -4/Factory | Hacked Inertial Stasis Machine | -4/Factory | Hacked Cmb. Linear Gravjet | -3/Research | Hacked Lrn. Phase Cannon | -3/Quarantine | Reported Exp. Target Analyzer | -3/Quarantine | Reported Exp. Focal Shield | -3/Quarantine | Reported Molecular Scythe | -3/Quarantine | Reported Imp. Particle Charger | -3/Quarantine | Reported Energy Mantle | -3/Quarantine | Reported Cld. Proton Cannon | -3/Quarantine | Reported Exp. Matter Compressor | -3/Quarantine | Reported Adv. Coolant Injector | -3/Quarantine | Reported Imp. Matter Neutralizer | -3/Quarantine | Reported Robot Schematics ------------------ M-36 Artificer | -4/Factory | Downloaded Fabricated ------------ Nanoactuators | x2 | -4/Factory Adv. Phase Shifter | x1 | -4/Factory Adv. Actuator Array | x1 | -4/Factory Inertial Stasis Machine | x1 | -4/Factory Imp. Force Booster | x2 | -3/Research Alien Tech Used ----------------- Core Stripper Terrabomb Subatomic Replicator Sigix Broadsword Achievements -------------- None Challenges ------------ None RPGLIKE | -11 -10 -10 -9 -9 -9 -8 -8 -8 -8 -8 -6 -6 -6 -6 -5 -5 -4 -4 -3 -3 -3 -2 --------- Run | Scr Mat Min Mat Min Exi Min Mat Sto Gar Rec Fac Was Fac Gar Fac Gar Fac Gar Res Qua Gar Res Levels Raised 31 | . . . 3 1 . . 2 2 2 1 2 . 4 1 4 . 3 . 3 . 1 2 XP Earned 53247 | 6000 30 1400 4127 500 350 843 2683 2842 3040 749 4060 200 4888 2054 5338 1129 3479 818 3695 1138 846 3038 XP Spent 47950 | . . 2500 500 . 8400 . . . 8450 . 4920 . 5660 . 6300 1280 3980 . 5000 960 . . Upgrades 80 | . . 4 1 . 9 . . . 8 . 8 . 25 . 6 8 3 . 4 4 . . Power Slot 2 | . . . . . 1 . . . . . . . . . . . . . 1 . . . Propulsion Slot 4 | . . . 1 . 2 . . . . . . . . . 1 . . . . . . . Utility Slot 11 | . . . . . 5 . . . 2 . . . 1 . 1 . 1 . 1 . . . Weapon Slot 2 | . . . . . 1 . . . . . 1 . . . . . . . . . . . Core Integrity 18 | . . . . . . . . . . . . . 10 . . 8 . . . . . . Heat Dissipation 12 | . . . . . . . . . . . 2 . 6 . . . . . . 4 . . Mass Support 2 | . . . . . . . . . . . . . . . . . . . 2 . . . Inventory Capacity 6 | . . 4 . . . . . . 2 . . . . . . . . . . . . . Terrain Scan Density 10 | . . . . . . . . . . . . . 8 . . . 2 . . . . . Melee Accuracy 4 | . . . . . . . . . 4 . . . . . . . . . . . . . Hack Attack % 4 | . . . . . . . . . . . . . . . 4 . . . . . . . Hack Defense % 5 | . . . . . . . . . . . 5 . . . . . . . . . . . Protomatter Created 6472 | . . 10 . . . . 51 111 216 5 83 . 111 50 1163 587 756 278 1312 316 666 757 Integrity Restored 13499 | . . 30 . 93 . . . 159 670 . 186 174 577 426 2081 1004 1082 612 2334 1041 1569 1461 Core 10935 | . . 30 . 93 . . . 159 418 . 186 174 172 426 1454 705 770 538 1739 1041 1569 1461 Parts 2564 | . . . . . . . . . 252 . . . 405 . 627 299 312 74 595 . . . Protomatter Decayed 4708 | . . . . 71 . . . . 43 . 21 99 432 209 941 229 548 99 588 229 550 649 Game ------ Seed PhasingTerrabombDissipator Manual? 0 Play Time 04:20:04 Cumulative 324.7 hours Start 2021.10.08 @ 11:31:02 End 2021.10.09 @ 01:08:00 Sessions 3 Manual Loads 0 Difficulty Explorer Special Mode Winter2019/RPGLIKE Game No. 89 Rogue 0 Adventurer 0 Explorer 89 Win Type - Total 26 Types 15/3/1/1/1/2/1/2/0 Lore% 72 Gallery% 86 Achievement% 81 Wizard Run 0 Options --------- ASCII 0 Keyboard 0 Movement Arrows Keybinds 0 Fullscreen 2 Font 18/SmallcapsGlow Map View 76x50 Tactical HUD 1 Map Filters NONE Filters NONE Steam 1 RUN: 5e8c6712-6ec1-40cd-b724-7e169eb8587d